fUSD/lending_fUSD_20250123
["ID","MTS","AMOUNT","RATE_DAILY","PERIOD"]
[350072822,1737599459452,-500.0,0.00020821,2]
[350072823,1737599459462,-500.0,0.00020821,2]
[350072824,1737599459471,-688.26,0.00020821,2]
[350072825,1737599459481,-500.0,0.00020821,2]
[350072826,1737599459493,-859.68,0.00020821,2]
[350072827,1737599459502,-839.81,0.00020821,2]
[350072828,1737599459512,-500.0,0.00020821,2]
[350072829,1737599459522,-500.0,0.00020821,2]
[350072830,1737599459531,-878.81,0.00020821,2]
[350072831,1737599459540,-500.0,0.00020821,2]
[350072832,1737599459549,-529.67,0.00020821,2]
[350072833,1737599459559,-2809.15,0.00020821,2]
[350072834,1737599459568,-758.26,0.00020821,2]
[350072835,1737599459577,-1218.65,0.00020821,2]
[350072836,1737599459587,-250.01229439,0.00020821,2]
[350072837,1737599459596,-500.0,0.00020821,2]
[350072838,1737599459605,-512.25,0.00020821,2]
[350072839,1737599459615,-500.0,0.00020821,2]
[350072840,1737599459624,-500.0,0.00020821,2]
[350072841,1737599459635,-847.25,0.00020821,2]
[350072842,1737599459644,-500.0,0.00020821,2]
[350072843,1737599459653,-809.53,0.00020821,2]
[350072844,1737599459663,-500.0,0.00020821,2]
[350072845,1737599459672,-1137.11,0.00020821,2]
[350072846,1737599459682,-500.0,0.00020821,2]
[350072847,1737599459692,-500.0,0.00020821,2]
[350072848,1737599459701,-500.0,0.00020821,2]
[350072849,1737599459712,-500.0,0.00020821,2]
[350072850,1737599459721,-500.0,0.00020821,2]
[350072851,1737599459731,-500.0,0.00020821,2]
[350072852,1737599459740,-500.0,0.00020821,2]
[350072853,1737599459750,-2655.17,0.00020821,2]
[350072854,1737599459759,-500.0,0.00020821,2]
[350072855,1737599459769,-500.0,0.00020821,2]
[350072856,1737599459781,-2577.5,0.00020821,2]
[350072857,1737599459790,-200.0,0.00020824,2]
[350072858,1737599459799,-87970.60465306,0.0002083,2]
[350072859,1737599459809,-430.44691932,0.00020842,2]
[350072860,1737599459818,-3430.2604288,0.00020854,2]
[350072861,1737599459828,-10263.05557695,0.00020856,2]
[350072862,1737599459838,-430.44691932,0.00020864,2]
[350072863,1737599459847,-3430.2604288,0.00020873,2]
[350072864,1737599459857,-1176.0,0.00020878,2]
[350072865,1737599459868,-500.0,0.00020889,2]
[350072866,1737599459878,-10263.05557695,0.00020889,2]
[350072867,1737599459887,-200.0,0.00020889,2]
[350072868,1737599459896,-3430.2604288,0.00020894,2]
[350072869,1737599459906,-515.70077797,0.00020895,2]
[350072870,1737599459917,-160.996,0.000209,2]
[350072871,1737599459927,-4177.46804862,0.000209,2]
[350072872,1737599459936,-300.0,0.000209,7]
[350072873,1737599459947,-10263.05557695,0.00020903,2]
[350072874,1737599459956,-200.0,0.00020916,2]
[350072875,1737599459967,-87970.60465306,0.00020917,2]
[350072876,1737599459976,-430.44691932,0.00020921,2]
[350072877,1737599459985,-430.44691932,0.00020925,2]
[350072878,1737599459995,-3430.2604288,0.00020926,2]
[350072879,1737599460005,-10263.05557695,0.0002093,2]
[350072880,1737599460014,-337.11980556,0.00020934,2]
[350072881,1737599460023,-87970.60465306,0.0002094,2]
[350072882,1737599460033,-3430.2604288,0.00020945,2]
[350072883,1737599460043,-87970.60465306,0.00020949,2]
[350072884,1737599460052,-500.0,0.00020995,2]
[350072885,1737599460062,-500.0,0.00020995,2]
[350072886,1737599460072,-500.0,0.00020995,2]
[350072887,1737599460082,-500.0,0.00020995,2]
[350072888,1737599460092,-500.0,0.00020995,2]
[350072889,1737599460102,-367.05655434,0.00020995,2]
[350072890,1737599460112,-500.0,0.00020995,2]
[350072891,1737599460122,-500.0,0.00020995,2]
[350072892,1737599460132,-500.0,0.00020995,2]
[350072893,1737599460141,-467.11634059,0.00020995,2]
[350072894,1737599460150,-500.0,0.00020995,2]
[350072895,1737599460159,-500.0,0.00020995,2]
[350072896,1737599460169,-500.0,0.00020995,2]
[350072897,1737599460179,-500.0,0.00020995,2]
[350072898,1737599460188,-500.0,0.00020995,2]
[350072899,1737599460197,-500.0,0.00020995,2]
[350072900,1737599460207,-700.0,0.00021,2]
[350072901,1737599460217,-244.65,0.00021,2]
[350072902,1737599460227,-9760.75132768,0.00021,2]
[350072903,1737599460348,-2110.0,0.00021005,2]
[350072904,1737599460373,-1500.0113831,0.0002102,2]
[350072905,1737599460383,-565.35,0.00021094,2]
[350072906,1737599460393,-492.581712,0.00021094,2]
[350072907,1737599460404,-500.0,0.00021094,2]
[350072908,1737599460414,-500.0,0.00021094,2]
[350072909,1737599460426,-832.87,0.00021094,2]
[350072910,1737599460435,-567.524343,0.00021094,2]
[350072911,1737599460445,-598.68,0.00021094,2]
[350072912,1737599460456,-726.07,0.00021094,2]
[350072913,1737599460466,-151.101062,0.00021094,2]
[350072914,1737599460479,-877.0,0.00021094,2]
[350072915,1737599460489,-561.82,0.00021094,2]
[350072916,1737599460499,-1634.03,0.00021094,2]
[350072917,1737599460508,-159.527336,0.00021094,2]
[350072918,1737599460518,-1061.31,0.00021094,2]
[350072919,1737599460527,-2096.31,0.00021094,2]
[350072920,1737599460537,-2326.67,0.00021094,2]
[350072921,1737599460546,-500.0,0.00021094,2]
[350072922,1737599460556,-1001.28,0.00021094,2]
[350072923,1737599460565,-2560.3,0.00021094,2]
[350072924,1737599460577,-1111.68,0.00021094,2]
[350072925,1737599460588,-1248.25,0.00021094,2]
[350072926,1737599460599,-500.0,0.00021095,2]
[350072927,1737599460608,-500.0,0.00021095,2]
[350072928,1737599460620,-500.0,0.00021095,2]
[350072929,1737599460630,-500.0,0.00021095,2]
[350072930,1737599460640,-500.0,0.00021095,2]
[350072931,1737599460650,-500.0,0.00021095,2]
[350072932,1737599460659,-675.5,0.00021095,2]
[350072933,1737599460668,-500.0,0.00021095,2]
[350072934,1737599460678,-988.31,0.00021095,2]
[350072935,1737599460688,-500.0,0.00021095,2]
[350072936,1737599460697,-500.0,0.00021095,2]
[350072937,1737599460706,-500.0,0.00021095,2]
[350072938,1737599460717,-509.86,0.00021095,2]
[350072939,1737599460727,-500.0,0.00021095,2]
[350072940,1737599460737,-500.0,0.00021095,2]
[350072941,1737599460747,-500.0,0.00021095,2]
[350072942,1737599460758,-500.0,0.00021095,2]
[350072943,1737599460767,-500.0,0.00021095,2]
[350072944,1737599460777,-500.0,0.00021095,2]
[350072945,1737599460786,-505.3,0.00021095,2]
[350072946,1737599460796,-500.0,0.00021095,2]
[350072947,1737599460806,-500.0,0.00021095,2]
[350072948,1737599460815,-500.0,0.00021095,2]
[350072949,1737599460825,-500.0,0.00021095,2]
[350072950,1737599460835,-500.0,0.00021095,2]
[350072951,1737599460844,-500.0,0.00021095,2]
[350072952,1737599460853,-500.0,0.00021095,2]
[350072953,1737599460864,-500.0,0.00021095,2]
[350072954,1737599460877,-500.0,0.00021095,2]
[350072955,1737599460886,-500.0,0.00021095,2]
[350072956,1737599460895,-500.0,0.00021095,2]
[350072957,1737599460906,-500.0,0.00021095,2]
[350072958,1737599460916,-500.0,0.00021095,2]
[350072959,1737599460925,-500.0,0.00021095,2]
[350072960,1737599460935,-500.0,0.00021095,2]
[350072961,1737599460944,-500.0,0.00021095,2]
[350072962,1737599460954,-561.44,0.00021095,2]
[350072963,1737599460964,-502.7,0.00021095,2]
[350072964,1737599460973,-647.89,0.00021095,2]
[350072965,1737599460983,-500.0,0.00021095,2]
[350072966,1737599460992,-3339.86,0.00021095,2]
[350072967,1737599461002,-500.0,0.00021095,2]
[350072968,1737599461011,-788.96,0.00021095,2]
[350072969,1737599461020,-772.85,0.00021095,2]
[350072970,1737599461030,-500.0,0.00021095,2]
[350072971,1737599461039,-1244.64,0.00021095,2]
[350072972,1737599461048,-500.0,0.00021095,2]
[350072973,1737599461057,-500.0,0.00021095,2]
[350072974,1737599461067,-1459.64,0.00021095,2]
[350072975,1737599461076,-561.73,0.00021095,2]
[350072976,1737599461086,-500.0,0.00021095,2]
[350072977,1737599461095,-671.25,0.00021095,2]
[350072978,1737599461104,-1204.99,0.00021095,2]
[350072979,1737599461113,-1657.73,0.00021095,2]
[350072980,1737599461123,-673.68,0.00021095,2]
[350072981,1737599461132,-2004.83,0.00021095,2]
[350072982,1737599461142,-500.0,0.00021095,2]
[350072983,1737599461151,-501.79,0.00021095,2]
[350072984,1737599461160,-2667.34,0.00021095,2]
[350072985,1737599461170,-500.0,0.00021095,2]
[350072986,1737599461180,-742.07,0.00021095,2]
[350072987,1737599461189,-500.0,0.00021095,2]
[350072988,1737599461199,-1126.57,0.00021095,2]
[350072989,1737599461208,-500.0,0.00021095,2]
[350072990,1737599461218,-1053.15,0.00021095,2]
[350072991,1737599461228,-500.0,0.00021095,2]
[350072992,1737599461238,-1636.74,0.00021095,2]
[350072993,1737599461247,-841.37,0.00021095,2]
[350072994,1737599461257,-1167.74,0.00021095,2]
[350072995,1737599461266,-537.15,0.00021095,2]
[350072996,1737599461276,-500.0,0.00021095,2]
[350072997,1737599461285,-1055.11,0.00021095,2]
[350072998,1737599461296,-500.0,0.00021095,2]
[350072999,1737599461305,-3246.93,0.00021095,2]
[350073000,1737599461315,-1812.62,0.00021095,2]
[350073001,1737599461324,-500.0,0.00021095,2]
[350073002,1737599461334,-964.19,0.00021095,2]
[350073003,1737599461343,-500.0,0.00021095,2]
[350073004,1737599461353,-1463.35,0.00021095,2]
[350073005,1737599461363,-756.51,0.00021095,2]
[350073006,1737599461372,-500.0,0.00021095,2]
[350073007,1737599461382,-1000.0,0.00021095,2]
[350073008,1737599461392,-500.0,0.00021095,2]
[350073009,1737599461402,-500.0,0.00021095,2]
[350073010,1737599461412,-1060.92,0.00021095,2]
[350073011,1737599461421,-1921.47,0.00021095,2]
[350073012,1737599461431,-500.0,0.00021095,2]
[350073013,1737599461442,-500.0,0.00021095,2]
[350073014,1737599461451,-924.69,0.00021095,2]
[350073015,1737599461461,-500.0,0.00021095,2]
[350073016,1737599461470,-3081.37,0.00021095,2]
[350073017,1737599461480,-923.14,0.00021095,2]
[350073018,1737599461490,-500.0,0.00021095,2]
[350073019,1737599461500,-694.55,0.00021095,2]
[350073020,1737599461509,-1906.61,0.00021095,2]
[350073021,1737599461519,-1262.91,0.00021095,2]
[350073022,1737599461529,-500.0,0.00021095,2]
[350073023,1737599461540,-500.0,0.00021095,2]
[350073024,1737599461552,-547.76,0.00021095,2]
[350073025,1737599461562,-500.0,0.00021095,2]
[350073026,1737599461572,-500.0,0.00021095,2]
[350073027,1737599461582,-1771.53,0.00021095,2]
[350073028,1737599461593,-1218.14,0.00021095,2]
[350073029,1737599461603,-929.07,0.00021095,2]
[350073030,1737599461612,-1872.91,0.00021095,2]
[350073031,1737599461624,-1206.37,0.00021095,2]
[350073032,1737599461634,-500.0,0.00021095,2]
[350073033,1737599461644,-1867.47,0.00021095,2]
[350073034,1737599461654,-280.93864245,0.00021095,2]
[350073035,1737599461664,-565.49369669,0.00021095,2]
[350073036,1737599461675,-500.0,0.00021095,2]
[350073037,1737599461685,-1460.57,0.00021095,2]
[350073038,1737599461695,-500.0,0.00021095,2]
[350073039,1737599461704,-500.0,0.00021095,2]
[350073040,1737599461714,-1160.34,0.00021095,2]
[350073041,1737599461724,-500.0,0.00021095,2]
[350073042,1737599461733,-500.0,0.00021095,2]
[350073043,1737599461744,-500.0,0.00021095,2]
[350073044,1737599461754,-500.0,0.00021095,2]
[350073045,1737599461764,-500.0,0.00021095,2]
[350073046,1737599461774,-796.55,0.00021095,2]
[350073047,1737599461783,-692.17,0.00021095,2]
[350073048,1737599461793,-226.0398368,0.00021095,2]
[350073049,1737599461803,-1258.1,0.00021095,2]
[350073050,1737599461813,-500.0,0.00021095,2]
[350073051,1737599461823,-1251.58,0.00021095,2]
[350073052,1737599461832,-500.0,0.00021095,2]
[350073053,1737599461843,-2295.01,0.00021095,2]
[350073054,1737599461852,-526.8,0.00021095,2]
[350073055,1737599461861,-2099.06,0.00021095,2]
[350073056,1737599461875,-500.0,0.00021095,2]
[350073057,1737599461884,-681.51,0.00021095,2]
[350073058,1737599461895,-1038.44,0.00021095,2]
[350073059,1737599461906,-500.0,0.00021095,2]
[350073060,1737599461915,-500.0,0.00021095,2]
[350073061,1737599461925,-688.26,0.00021095,2]
[350073062,1737599461935,-500.0,0.00021095,2]
[350073063,1737599461945,-859.68,0.00021095,2]
[350073064,1737599461957,-839.81,0.00021095,2]
[350073065,1737599461967,-500.0,0.00021095,2]
[350073066,1737599461976,-878.81,0.00021095,2]
[350073067,1737599461986,-500.0,0.00021095,2]
[350073068,1737599461996,-529.67,0.00021095,2]
[350073069,1737599462005,-2809.15,0.00021095,2]
[350073070,1737599462017,-758.26,0.00021095,2]
[350073071,1737599462026,-1218.65,0.00021095,2]
[350073072,1737599462037,-500.0,0.00021095,2]
[350073073,1737599462048,-512.25,0.00021095,2]
[350073074,1737599462059,-500.0,0.00021095,2]
[350073075,1737599462069,-500.0,0.00021095,2]
[350073076,1737599462081,-847.25,0.00021095,2]
[350073077,1737599462093,-500.0,0.00021095,2]
[350073078,1737599462103,-809.53,0.00021095,2]
[350073079,1737599462113,-526.65265018,0.00021095,2]
[350073080,1737599462123,-1137.11,0.00021095,2]
[350073081,1737599462134,-500.0,0.00021095,2]
[350073082,1737599462145,-500.0,0.00021095,2]
[350073083,1737599462155,-500.0,0.00021095,2]
[350073084,1737599462165,-500.0,0.00021095,2]
[350073085,1737599462175,-500.0,0.00021095,2]
[350073086,1737599462184,-500.0,0.00021095,2]
[350073087,1737599462194,-500.0,0.00021095,2]
[350073088,1737599462204,-2655.17,0.00021095,2]
[350073089,1737599462214,-500.0,0.00021095,2]
[350073090,1737599462223,-489.34811636,0.00021095,2]
[350073091,1737599462233,-2577.5,0.00021095,2]
[350073092,1737599462242,-401.06520507,0.00021122,2]
[350073093,1737599462251,-337.11980556,0.00021176,2]
[350073094,1737599462262,-4241.88,0.000212,2]
[350073095,1737599462272,-250.0,0.00021215,2]
[350073096,1737599462281,-500.0,0.00021269,2]
[350073097,1737599462291,-500.0,0.00021269,2]
[350073098,1737599462301,-500.0,0.00021269,2]
[350073099,1737599462311,-500.0,0.00021269,2]
[350073100,1737599462321,-500.0,0.00021269,2]
[350073101,1737599462331,-517.62688506,0.00021269,2]
[350073102,1737599462340,-514.24628328,0.00021269,2]
[350073103,1737599462351,-558.33173748,0.00021269,2]
[350073104,1737599462361,-500.0,0.00021269,2]
[350073105,1737599462370,-500.0,0.00021269,2]
[350073106,1737599462380,-500.0,0.00021269,2]
[350073107,1737599462390,-500.0,0.00021269,2]
[350073108,1737599462399,-500.0,0.00021269,2]
[350073109,1737599462409,-2000.0,0.000213,7]
[350073110,1737599462418,-565.35,0.00021368,2]
[350073111,1737599462428,-492.581712,0.00021368,2]
[350073112,1737599462438,-500.0,0.00021368,2]
[350073113,1737599462447,-500.0,0.00021368,2]
[350073114,1737599462456,-832.87,0.00021368,2]
[350073115,1737599462466,-567.524343,0.00021368,2]
[350073116,1737599462476,-598.68,0.00021368,2]
[350073117,1737599462485,-726.07,0.00021368,2]
[350073118,1737599462495,-151.101062,0.00021368,2]
[350073119,1737599462504,-877.0,0.00021368,2]
[350073120,1737599462514,-561.82,0.00021368,2]
[350073121,1737599462523,-1634.03,0.00021368,2]
[350073122,1737599462532,-500.0,0.00021368,2]
[350073123,1737599462542,-1061.31,0.00021368,2]
[350073124,1737599462552,-2096.31,0.00021368,2]
[350073125,1737599462562,-2326.67,0.00021368,2]
[350073126,1737599462572,-500.0,0.00021368,2]
[350073127,1737599462581,-1001.28,0.00021368,2]
[350073128,1737599462591,-2560.3,0.00021368,2]
[350073129,1737599462600,-1111.68,0.00021368,2]
[350073130,1737599462609,-1248.25,0.00021368,2]
[350073131,1737599462618,-500.0,0.00021369,2]
[350073132,1737599462627,-500.0,0.00021369,2]
[350073133,1737599462637,-500.0,0.00021369,2]
[350073134,1737599462646,-500.0,0.00021369,2]
[350073135,1737599462655,-500.0,0.00021369,2]
[350073136,1737599462664,-500.0,0.00021369,2]
[350073137,1737599462674,-675.5,0.00021369,2]
[350073138,1737599462684,-514.14237764,0.00021369,2]
[350073139,1737599462693,-988.31,0.00021369,2]
[350073140,1737599462703,-500.0,0.00021369,2]
[350073141,1737599462712,-500.0,0.00021369,2]
[350073142,1737599462721,-500.0,0.00021369,2]
[350073143,1737599462730,-509.86,0.00021369,2]
[350073144,1737599462740,-500.0,0.00021369,2]
[350073145,1737599462750,-500.0,0.00021369,2]
[350073146,1737599462759,-500.0,0.00021369,2]
[350073147,1737599462769,-335.25789825,0.00021369,2]
[350073148,1737599462778,-500.0,0.00021369,2]
[350073149,1737599462787,-500.0,0.00021369,2]
[350073150,1737599462797,-505.3,0.00021369,2]
[350073151,1737599462806,-500.0,0.00021369,2]
[350073152,1737599462816,-500.0,0.00021369,2]
[350073153,1737599462825,-500.0,0.00021369,2]
[350073154,1737599462835,-500.0,0.00021369,2]
[350073155,1737599462844,-500.0,0.00021369,2]
[350073156,1737599462853,-500.0,0.00021369,2]
[350073157,1737599462863,-500.0,0.00021369,2]
[350073158,1737599462877,-500.0,0.00021369,2]
[350073159,1737599462886,-500.0,0.00021369,2]
[350073160,1737599462895,-500.0,0.00021369,2]
[350073161,1737599462905,-500.0,0.00021369,2]
[350073162,1737599462916,-293.66472602,0.00021369,2]
[350073163,1737599462925,-500.0,0.00021369,2]
[350073164,1737599462935,-500.0,0.00021369,2]
[350073165,1737599462945,-500.0,0.00021369,2]
[350073166,1737599462954,-500.0,0.00021369,2]
[350073167,1737599462964,-561.44,0.00021369,2]
[350073168,1737599462974,-502.7,0.00021369,2]
[350073169,1737599462984,-647.89,0.00021369,2]
[350073170,1737599462993,-500.0,0.00021369,2]
[350073171,1737599463002,-3339.86,0.00021369,2]
[350073172,1737599463011,-500.0,0.00021369,2]
[350073173,1737599463020,-788.96,0.00021369,2]
[350073174,1737599463030,-772.85,0.00021369,2]
[350073175,1737599463039,-1244.64,0.00021369,2]
[350073176,1737599463049,-500.0,0.00021369,2]
[350073177,1737599463058,-227.00929242,0.00021369,2]
[350073178,1737599463068,-1459.64,0.00021369,2]
[350073179,1737599463078,-561.73,0.00021369,2]
[350073180,1737599463088,-500.0,0.00021369,2]
[350073181,1737599463098,-671.25,0.00021369,2]
[350073182,1737599463107,-1204.99,0.00021369,2]
[350073183,1737599463117,-1657.73,0.00021369,2]
[350073184,1737599463127,-673.68,0.00021369,2]
[350073185,1737599463136,-2004.83,0.00021369,2]
[350073186,1737599463146,-500.0,0.00021369,2]
[350073187,1737599463288,-501.79,0.00021369,2]
[350073188,1737599463299,-2667.34,0.00021369,2]
[350073189,1737599463310,-500.0,0.00021369,2]
[350073190,1737599463319,-742.07,0.00021369,2]
[350073191,1737599463329,-500.0,0.00021369,2]
[350073192,1737599463339,-1126.57,0.00021369,2]
[350073193,1737599463348,-500.0,0.00021369,2]
[350073194,1737599463358,-1053.15,0.00021369,2]
[350073195,1737599463367,-500.0,0.00021369,2]
[350073196,1737599463377,-1636.74,0.00021369,2]
[350073197,1737599463387,-841.37,0.00021369,2]
[350073198,1737599463398,-1167.74,0.00021369,2]
[350073199,1737599463407,-537.15,0.00021369,2]
[350073200,1737599463418,-500.0,0.00021369,2]
[350073201,1737599463428,-1055.11,0.00021369,2]
[350073202,1737599463438,-500.0,0.00021369,2]
[350073203,1737599463448,-3246.93,0.00021369,2]
[350073204,1737599463459,-1812.62,0.00021369,2]
[350073205,1737599463470,-500.0,0.00021369,2]
[350073206,1737599463480,-964.19,0.00021369,2]
[350073207,1737599463490,-500.0,0.00021369,2]
[350073208,1737599463500,-1463.35,0.00021369,2]
[350073209,1737599463510,-756.51,0.00021369,2]
[350073210,1737599463520,-500.0,0.00021369,2]
[350073211,1737599463529,-1000.0,0.00021369,2]
[350073212,1737599463539,-500.0,0.00021369,2]
[350073213,1737599463549,-500.0,0.00021369,2]
[350073214,1737599463559,-1060.92,0.00021369,2]
[350073215,1737599463569,-1921.47,0.00021369,2]
[350073216,1737599463579,-500.0,0.00021369,2]
[350073217,1737599463589,-500.0,0.00021369,2]
[350073218,1737599463599,-924.69,0.00021369,2]
[350073219,1737599463608,-500.0,0.00021369,2]
[350073220,1737599463618,-3081.37,0.00021369,2]
[350073221,1737599463628,-923.14,0.00021369,2]
[350073222,1737599463639,-500.0,0.00021369,2]
[350073223,1737599463648,-694.55,0.00021369,2]
[350073224,1737599463659,-1906.61,0.00021369,2]
[350073225,1737599463668,-1262.91,0.00021369,2]
[350073226,1737599463679,-500.0,0.00021369,2]
[350073227,1737599463690,-500.0,0.00021369,2]
[350073228,1737599463701,-547.76,0.00021369,2]
[350073229,1737599463711,-500.0,0.00021369,2]
[350073230,1737599463723,-500.0,0.00021369,2]
[350073231,1737599463734,-1771.53,0.00021369,2]
[350073232,1737599463744,-1218.14,0.00021369,2]
[350073233,1737599463755,-929.07,0.00021369,2]
[350073234,1737599463766,-1872.91,0.00021369,2]
[350073235,1737599463776,-1206.37,0.00021369,2]
[350073236,1737599463787,-500.0,0.00021369,2]
[350073237,1737599463798,-1867.47,0.00021369,2]
[350073238,1737599463808,-500.0,0.00021369,2]
[350073239,1737599463819,-1460.57,0.00021369,2]
[350073240,1737599463828,-500.0,0.00021369,2]
[350073241,1737599463838,-500.0,0.00021369,2]
[350073242,1737599463848,-1160.34,0.00021369,2]
[350073243,1737599463858,-500.0,0.00021369,2]
[350073244,1737599463870,-500.0,0.00021369,2]
[350073245,1737599463881,-473.54463462,0.00021369,2]
[350073246,1737599463890,-500.0,0.00021369,2]
[350073247,1737599463900,-796.55,0.00021369,2]
[350073248,1737599463911,-692.17,0.00021369,2]
[350073249,1737599463920,-1258.1,0.00021369,2]
[350073250,1737599463930,-500.0,0.00021369,2]
[350073251,1737599463939,-1251.58,0.00021369,2]
[350073252,1737599463950,-500.0,0.00021369,2]
[350073253,1737599463961,-2295.01,0.00021369,2]
[350073254,1737599463972,-526.8,0.00021369,2]
[350073255,1737599463982,-2099.06,0.00021369,2]
[350073256,1737599463992,-500.0,0.00021369,2]
[350073257,1737599464002,-681.51,0.00021369,2]
[350073258,1737599464012,-1038.44,0.00021369,2]
[350073259,1737599464023,-500.0,0.00021369,2]
[350073260,1737599464033,-500.0,0.00021369,2]
[350073261,1737599464042,-688.26,0.00021369,2]
[350073262,1737599464052,-500.0,0.00021369,2]
[350073263,1737599464063,-859.68,0.00021369,2]
[350073264,1737599464072,-839.81,0.00021369,2]
[350073265,1737599464082,-500.0,0.00021369,2]
[350073266,1737599464092,-878.81,0.00021369,2]
[350073267,1737599464103,-500.0,0.00021369,2]
[350073268,1737599464112,-529.67,0.00021369,2]
[350073269,1737599464122,-2809.15,0.00021369,2]
[350073270,1737599464131,-758.26,0.00021369,2]
[350073271,1737599464141,-1218.65,0.00021369,2]
[350073272,1737599464151,-500.0,0.00021369,2]
[350073273,1737599464160,-512.25,0.00021369,2]
[350073274,1737599464170,-500.0,0.00021369,2]
[350073275,1737599464180,-500.0,0.00021369,2]
[350073276,1737599464190,-847.25,0.00021369,2]
[350073277,1737599464199,-509.60746093,0.00021369,2]
[350073278,1737599464209,-809.53,0.00021369,2]
[350073279,1737599464218,-1137.11,0.00021369,2]
[350073280,1737599464228,-500.0,0.00021369,2]
[350073281,1737599464238,-500.0,0.00021369,2]
[350073282,1737599464250,-500.0,0.00021369,2]
[350073283,1737599464260,-500.0,0.00021369,2]
[350073284,1737599464270,-500.0,0.00021369,2]
[350073285,1737599464280,-500.0,0.00021369,2]
[350073286,1737599464290,-500.0,0.00021369,2]
[350073287,1737599464300,-2655.17,0.00021369,2]
[350073288,1737599464309,-500.0,0.00021369,2]
[350073289,1737599464319,-2577.5,0.00021369,2]
[350073290,1737599464329,-1166.8825924,0.00021373,2]
[350073291,1737599464339,-1166.88259231,0.00021373,2]
[350073292,1737599464348,-500.0,0.00021394,2]
[350073293,1737599464358,-400.0,0.000214,7]
[350073294,1737599464368,-555.08,0.00021411,7]
[350073295,1737599464377,-555.08,0.00021411,7]
[350073296,1737599464387,-555.08,0.00021411,7]
[350073297,1737599464397,-555.08,0.00021411,7]
[350073298,1737599464407,-337.11980556,0.00021417,2]
[350073299,1737599464418,-556.0,0.00021425,2]
[350073300,1737599464429,-1516.89,0.00021499,2]
[350073301,1737599464440,-400.0,0.000215,7]
[350073302,1737599464451,-49560.57532337,0.000215,2]
[350073303,1737599464462,-300.0,0.000215,7]
[350073304,1737599464472,-2110.0,0.00021505,2]
[350073305,1737599464481,-500.0,0.00021543,2]
[350073306,1737599464491,-500.0,0.00021543,2]
[350073307,1737599464502,-500.0,0.00021543,2]
[350073308,1737599464511,-518.92687767,0.00021543,2]
[350073309,1737599464521,-500.0,0.00021543,2]
[350073310,1737599464531,-520.75801478,0.00021543,2]
[350073311,1737599464541,-500.0,0.00021543,2]
[350073312,1737599464551,-308.24022293,0.00021543,2]
[350073313,1737599464561,-500.0,0.00021543,2]
[350073314,1737599464571,-500.0,0.00021543,2]
[350073315,1737599464583,-400.0,0.000216,7]
[350073316,1737599464595,-300.0,0.000216,7]
[350073317,1737599464606,-1000.0,0.000216,2]
[350073318,1737599464616,-565.35,0.00021642,2]
[350073319,1737599464626,-492.581712,0.00021642,2]
[350073320,1737599464637,-592.5098164,0.00021642,2]
[350073321,1737599464647,-569.24177256,0.00021642,2]